[Event "Late-Titled-Tuesday-Blitz-February-20-2024"]
[Site "Chess.com"]
[Date "2024.02.20"]
[Round "2"]
[White "dennisodessa"]
[Black "Hui_Li_Macau"]
[Result "1/2-1/2"]
[WhiteElo "2570"]
[BlackElo "2359"]
[TimeControl "180+1"]
[EndTime "14:18:00 PST"]
[Termination "Game drawn - insufficient material"]

1. d4 {[%clk 0:02:57.4]} 1... d5 {[%clk 0:02:59.1]} 2. c4 {[%clk 0:02:57.7]}
2... e6 {[%clk 0:02:59.2]} 3. Nc3 {[%clk 0:02:57.4]} 3... Nf6 {[%clk 0:02:59.7]}
4. cxd5 {[%clk 0:02:57.9]} 4... exd5 {[%clk 0:03:00.6]} 5. Bg5 {[%clk
0:02:58.2]} 5... c6 {[%clk 0:03:01.2]} 6. e3 {[%clk 0:02:58.8]} 6... Be7 {[%clk
0:03:01.2]} 7. Bd3 {[%clk 0:02:58.1]} 7... Nbd7 {[%clk 0:03:01.8]} 8. h3 {[%clk
0:02:56]} 8... O-O {[%clk 0:03:02.1]} 9. Nf3 {[%clk 0:02:56.4]} 9... Re8 {[%clk
0:03:02.3]} 10. Qc2 {[%clk 0:02:55.7]} 10... Nf8 {[%clk 0:03:02.4]} 11. O-O
{[%clk 0:02:54.9]} 11... Ne4 {[%clk 0:03:02.8]} 12. Bxe7 {[%clk 0:02:55.4]}
12... Qxe7 {[%clk 0:03:03.7]} 13. Bxe4 {[%clk 0:02:50.8]} 13... dxe4 {[%clk
0:03:03.5]} 14. Nd2 {[%clk 0:02:51.6]} 14... f5 {[%clk 0:02:59.6]} 15. f3 {[%clk
0:02:51.7]} 15... exf3 {[%clk 0:02:56.6]} 16. Rxf3 {[%clk 0:02:52.6]} 16... Be6
{[%clk 0:02:51.3]} 17. Raf1 {[%clk 0:02:52.8]} 17... Nd7 {[%clk 0:02:42.6]} 18.
e4 {[%clk 0:02:18.2]} 18... fxe4 {[%clk 0:02:37.3]} 19. Ndxe4 {[%clk 0:02:19.1]}
19... Rf8 {[%clk 0:02:31]} 20. Qd3 {[%clk 0:01:51.7]} 20... Rxf3 {[%clk
0:02:24.1]} 21. Rxf3 {[%clk 0:01:50.5]} 21... Rf8 {[%clk 0:02:23.6]} 22. Rxf8+
{[%clk 0:01:42.7]} 22... Nxf8 {[%clk 0:01:53.6]} 23. d5 {[%clk 0:01:30.1]} 23...
cxd5 {[%clk 0:01:48.7]} 24. Nxd5 {[%clk 0:01:31]} 24... Bxd5 {[%clk 0:01:42.4]}
25. Qxd5+ {[%clk 0:01:31.9]} 25... Qe6 {[%clk 0:01:40.3]} 26. Qxe6+ {[%clk
0:01:30.9]} 26... Nxe6 {[%clk 0:01:41.2]} 27. Nd6 {[%clk 0:01:31.4]} 27... Nc5
{[%clk 0:01:22.1]} 28. b4 {[%clk 0:01:21.1]} 28... Nd3 {[%clk 0:01:19.8]} 29. a3
{[%clk 0:01:21.7]} 29... Ne1 {[%clk 0:01:08.5]} 30. a4 {[%clk 0:00:55.7]} 30...
b6 {[%clk 0:00:59.8]} 31. Nc8 {[%clk 0:00:52.7]} 31... Nd3 {[%clk 0:00:53.6]}
32. b5 {[%clk 0:00:44.2]} 32... Nc5 {[%clk 0:00:52.8]} 33. Nxa7 {[%clk 0:00:41]}
33... Nxa4 {[%clk 0:00:52.9]} 34. Kf2 {[%clk 0:00:40.8]} 34... Kf7 {[%clk
0:00:49.8]} 35. Ke3 {[%clk 0:00:41.5]} 35... Ke6 {[%clk 0:00:49.7]} 36. Kd4
{[%clk 0:00:42.1]} 36... Kd6 {[%clk 0:00:49.4]} 37. Nc8+ {[%clk 0:00:32.3]}
37... Kd7 {[%clk 0:00:48.3]} 38. Na7 {[%clk 0:00:32.2]} 38... Kd6 {[%clk
0:00:48.3]} 39. Nc6 {[%clk 0:00:30.7]} 39... Nc5 {[%clk 0:00:43.9]} 40. g3
{[%clk 0:00:16.5]} 40... Ne6+ {[%clk 0:00:43.7]} 41. Kc4 {[%clk 0:00:17.2]}
41... Ng5 {[%clk 0:00:42.5]} 42. h4 {[%clk 0:00:17.7]} 42... Ne4 {[%clk
0:00:42.7]} 43. g4 {[%clk 0:00:17]} 43... h6 {[%clk 0:00:33]} 44. Nb4 {[%clk
0:00:15.9]} 44... Nf6 {[%clk 0:00:30.4]} 45. g5 {[%clk 0:00:15.7]} 45... hxg5
{[%clk 0:00:27.2]} 46. hxg5 {[%clk 0:00:16.6]} 46... Nh7 {[%clk 0:00:27.7]} 47.
Nd5 {[%clk 0:00:13.3]} 47... Nxg5 {[%clk 0:00:27]} 48. Nxb6 {[%clk 0:00:14.2]}
48... Ne6 {[%clk 0:00:25.7]} 49. Nd5 {[%clk 0:00:13.1]} 49... g5 {[%clk
0:00:24.5]} 50. Ne3 {[%clk 0:00:11]} 50... Kc7 {[%clk 0:00:16.5]} 51. Kd5 {[%clk
0:00:09.7]} 51... Kb6 {[%clk 0:00:13]} 52. Kxe6 {[%clk 0:00:09.1]} 52... Kxb5
{[%clk 0:00:13.3]} 53. Kf5 {[%clk 0:00:09.8]} 53... g4 {[%clk 0:00:12.6]} 54.
Ng2 {[%clk 0:00:10.7]} 54... g3 {[%clk 0:00:12.7]} 55. Kf4 {[%clk 0:00:11.6]}
55... Kc4 {[%clk 0:00:12.9]} 56. Kf3 {[%clk 0:00:12.5]} 56... Kd3 {[%clk
0:00:13.1]} 57. Nh4 {[%clk 0:00:11.8]} 57... g2 {[%clk 0:00:13]} 58. Kxg2 {[%clk
0:00:12.7]} 1/2-1/2

[Event "Late-Titled-Tuesday-Blitz-February-20-2024"]
[Site "Chess.com"]
[Date "2024.02.20"]
[Round "2"]
[White "DreamsAreFake"]
[Black "kylelancman"]
[Result "0-1"]
[WhiteElo "2755"]
[BlackElo "2494"]
[TimeControl "180+1"]
[EndTime "14:18:09 PST"]
[Termination "kylelancman won by resignation"]

1. Nf3 {[%clk 0:03:00.9]} 1... Nf6 {[%clk 0:02:58.1]} 2. g3 {[%clk 0:03:01.5]}
2... b5 {[%clk 0:02:58]} 3. Bg2 {[%clk 0:03:01.3]} 3... Bb7 {[%clk 0:02:58.4]}
4. O-O {[%clk 0:03:01.6]} 4... e6 {[%clk 0:02:57.9]} 5. b3 {[%clk 0:03:02.4]}
5... Be7 {[%clk 0:02:56.2]} 6. Bb2 {[%clk 0:03:03]} 6... O-O {[%clk 0:02:56.2]}
7. c4 {[%clk 0:03:03.7]} 7... bxc4 {[%clk 0:02:55]} 8. bxc4 {[%clk 0:03:04.6]}
8... c5 {[%clk 0:02:53.6]} 9. Nc3 {[%clk 0:03:04.8]} 9... Nc6 {[%clk 0:02:51.6]}
10. Rb1 {[%clk 0:03:04.5]} 10... Rb8 {[%clk 0:02:48.3]} 11. e3 {[%clk
0:03:03.5]} 11... Qc7 {[%clk 0:02:41.8]} 12. Qc2 {[%clk 0:02:56.7]} 12... Nb4
{[%clk 0:02:35.6]} 13. Qb3 {[%clk 0:02:36.1]} 13... a6 {[%clk 0:02:24.8]} 14. a3
{[%clk 0:02:31.4]} 14... Nd3 {[%clk 0:02:23.4]} 15. Qc2 {[%clk 0:02:30.6]} 15...
Nxb2 {[%clk 0:02:22.8]} 16. Rxb2 {[%clk 0:02:31.4]} 16... Bc6 {[%clk 0:02:20.7]}
17. Rfb1 {[%clk 0:02:30.9]} 17... Rxb2 {[%clk 0:02:10.2]} 18. Qxb2 {[%clk
0:02:31.8]} 18... Bd6 {[%clk 0:02:10.1]} 19. Ne1 {[%clk 0:02:21.6]} 19... Bxg2
{[%clk 0:02:07.7]} 20. Nxg2 {[%clk 0:02:22.5]} 20... Rb8 {[%clk 0:02:07.2]} 21.
Qxb8+ {[%clk 0:02:21]} 21... Qxb8 {[%clk 0:02:08.1]} 22. Rxb8+ {[%clk
0:02:21.5]} 22... Bxb8 {[%clk 0:02:09]} 23. d3 {[%clk 0:02:14.2]} 23... Kf8
{[%clk 0:02:05.6]} 24. h3 {[%clk 0:02:12.6]} 24... Ke7 {[%clk 0:02:04]} 25. Kf1
{[%clk 0:02:13.2]} 25... d5 {[%clk 0:02:00.5]} 26. Ke2 {[%clk 0:02:10.2]} 26...
Kd6 {[%clk 0:01:58.7]} 27. Ne1 {[%clk 0:02:08.1]} 27... Bc7 {[%clk 0:01:55.8]}
28. Nc2 {[%clk 0:02:05.5]} 28... Nd7 {[%clk 0:01:52.3]} 29. cxd5 {[%clk
0:01:58.9]} 29... exd5 {[%clk 0:01:53.2]} 30. e4 {[%clk 0:01:59.8]} 30... d4
{[%clk 0:01:48.2]} 31. Nd5 {[%clk 0:01:58.6]} 31... Bd8 {[%clk 0:01:48.2]} 32.
Na1 {[%clk 0:01:46.1]} 32... f5 {[%clk 0:01:35.9]} 33. f3 {[%clk 0:01:42.4]}
33... fxe4 {[%clk 0:01:28.4]} 34. fxe4 {[%clk 0:01:43.3]} 34... Ne5 {[%clk
0:01:12.4]} 35. Nb3 {[%clk 0:01:43.5]} 35... h6 {[%clk 0:01:08.6]} 36. Nd2
{[%clk 0:01:40.8]} 36... Ba5 {[%clk 0:01:05.5]} 37. Nf3 {[%clk 0:01:37]} 37...
Bd8 {[%clk 0:01:03.2]} 38. a4 {[%clk 0:01:32.1]} 38... Nxf3 {[%clk 0:01:00.4]}
39. Kxf3 {[%clk 0:01:33]} 39... Ke5 {[%clk 0:01:00.4]} 40. Nf4 {[%clk
0:01:30.9]} 40... Kf6 {[%clk 0:00:58.2]} 41. Ke2 {[%clk 0:01:27]} 41... g6
{[%clk 0:00:51]} 42. Kd1 {[%clk 0:01:26.9]} 42... Kf7 {[%clk 0:00:47.5]} 43. Kc2
{[%clk 0:01:27]} 43... Bc7 {[%clk 0:00:47.1]} 44. Ne2 {[%clk 0:01:26.3]} 44...
Ke6 {[%clk 0:00:41.8]} 45. Kb3 {[%clk 0:01:26.4]} 45... Kd6 {[%clk 0:00:40.1]}
46. Kc4 {[%clk 0:01:24.6]} 46... Kc6 {[%clk 0:00:40.3]} 47. Nf4 {[%clk
0:01:11.4]} 47... g5 {[%clk 0:00:34.6]} 48. Nh5 {[%clk 0:01:11.3]} 48... Be5
{[%clk 0:00:33.8]} 49. Kb3 {[%clk 0:01:00.2]} 49... Kd6 {[%clk 0:00:29.6]} 50.
Kc2 {[%clk 0:00:54.5]} 50... Kc6 {[%clk 0:00:28]} 51. Kd1 {[%clk 0:00:55]} 51...
Kb6 {[%clk 0:00:28.2]} 52. Kc2 {[%clk 0:00:53.1]} 52... Ka5 {[%clk 0:00:27.1]}
53. Kb3 {[%clk 0:00:52.1]} 53... Kb6 {[%clk 0:00:27.7]} 54. h4 {[%clk 0:00:46]}
54... gxh4 {[%clk 0:00:22.6]} 55. gxh4 {[%clk 0:00:46.9]} 55... Kc6 {[%clk
0:00:22]} 56. Kc4 {[%clk 0:00:45.8]} 56... Kd6 {[%clk 0:00:22.2]} 57. Kb3 {[%clk
0:00:43.9]} 57... Kc6 {[%clk 0:00:18.2]} 58. Kc2 {[%clk 0:00:41.7]} 58... c4
{[%clk 0:00:13.9]} 59. dxc4 {[%clk 0:00:38.3]} 59... Kc5 {[%clk 0:00:14.5]} 60.
Kd3 {[%clk 0:00:38.3]} 60... a5 {[%clk 0:00:14.8]} 61. Ke2 {[%clk 0:00:32.2]}
61... Kxc4 {[%clk 0:00:15.1]} 62. Kf3 {[%clk 0:00:32.9]} 62... d3 {[%clk
0:00:14.7]} 63. Kg4 {[%clk 0:00:32.5]} 63... d2 {[%clk 0:00:14.8]} 64. Kf5
{[%clk 0:00:33.4]} 64... d1=Q {[%clk 0:00:14.9]} 65. Kxe5 {[%clk 0:00:34]} 65...
Qxh5+ {[%clk 0:00:15]} 66. Kd6 {[%clk 0:00:34.8]} 66... Qxh4 {[%clk 0:00:15.1]}
67. e5 {[%clk 0:00:35.7]} 67... Qd4+ {[%clk 0:00:13.7]} 68. Ke6 {[%clk
0:00:36.3]} 68... Kd3 {[%clk 0:00:12.9]} 69. Kf5 {[%clk 0:00:36.8]} 69... Qxa4
{[%clk 0:00:13.3]} 70. e6 {[%clk 0:00:37.7]} 70... Qe8 {[%clk 0:00:13.8]} 71.
Kf6 {[%clk 0:00:37.7]} 71... a4 {[%clk 0:00:14.2]} 72. Kg7 {[%clk 0:00:38.3]}
72... Qxe6 {[%clk 0:00:13.5]} 73. Kh7 {[%clk 0:00:38.6]} 73... a3 {[%clk
0:00:13.7]} 74. Kg7 {[%clk 0:00:38]} 74... a2 {[%clk 0:00:13.7]} 75. Kh7 {[%clk
0:00:38.9]} 75... Ke4 {[%clk 0:00:10.7]} 76. Kh8 {[%clk 0:00:37.8]} 76... a1=Q+
{[%clk 0:00:10.9]} 77. Kh7 {[%clk 0:00:38.7]} 77... Qa7+ {[%clk 0:00:10.4]} 0-1

[Event "Late-Titled-Tuesday-Blitz-February-20-2024"]
[Site "Chess.com"]
[Date "2024.02.20"]
[Round "2"]
[White "BebeBonito2022"]
[Black "SnekkerAndersen"]
[Result "0-1"]
[WhiteElo "2312"]
[BlackElo "2625"]
[TimeControl "180+1"]
[EndTime "14:18:14 PST"]
[Termination "SnekkerAndersen won on time"]

1. d4 {[%clk 0:03:00.9]} 1... e6 {[%clk 0:02:34.9]} 2. c4 {[%clk 0:03:00.7]}
2... d5 {[%clk 0:02:33.9]} 3. Nc3 {[%clk 0:03:00.6]} 3... Nf6 {[%clk 0:02:15.2]}
4. cxd5 {[%clk 0:03:00.6]} 4... exd5 {[%clk 0:02:15]} 5. Bg5 {[%clk 0:03:00.4]}
5... Be7 {[%clk 0:02:14.7]} 6. e3 {[%clk 0:03:00.3]} 6... c6 {[%clk 0:02:05.4]}
7. Bd3 {[%clk 0:03:00.7]} 7... Nbd7 {[%clk 0:02:05.1]} 8. Nge2 {[%clk
0:03:00.5]} 8... h6 {[%clk 0:02:05]} 9. Bh4 {[%clk 0:03:00.1]} 9... Nh5 {[%clk
0:02:05.3]} 10. Bxe7 {[%clk 0:02:59.6]} 10... Qxe7 {[%clk 0:02:06.2]} 11. O-O
{[%clk 0:02:59.4]} 11... O-O {[%clk 0:02:06.2]} 12. Qd2 {[%clk 0:02:51]} 12...
Nb6 {[%clk 0:02:02.1]} 13. Rae1 {[%clk 0:02:48.9]} 13... f5 {[%clk 0:02:02.6]}
14. b3 {[%clk 0:02:33.5]} 14... a5 {[%clk 0:02:02]} 15. a4 {[%clk 0:02:20.7]}
15... Bd7 {[%clk 0:01:58.8]} 16. Bc2 {[%clk 0:02:16.2]} 16... Rae8 {[%clk
0:01:57.7]} 17. Nc1 {[%clk 0:02:16.4]} 17... Nf6 {[%clk 0:01:56.6]} 18. Nd3
{[%clk 0:02:15.8]} 18... Ne4 {[%clk 0:01:32.2]} 19. Nxe4 {[%clk 0:02:15.5]}
19... fxe4 {[%clk 0:01:33.1]} 20. Ne5 {[%clk 0:02:15.9]} 20... Qb4 {[%clk
0:01:25.6]} 21. Qxb4 {[%clk 0:02:10.8]} 21... axb4 {[%clk 0:01:26.5]} 22. a5
{[%clk 0:02:09.3]} 22... Rxe5 {[%clk 0:01:27]} 23. dxe5 {[%clk 0:02:07.5]} 23...
Na8 {[%clk 0:01:27.7]} 24. f3 {[%clk 0:02:01.3]} 24... exf3 {[%clk 0:01:27.8]}
25. gxf3 {[%clk 0:01:57.3]} 25... Nc7 {[%clk 0:01:26.8]} 26. f4 {[%clk
0:01:57.2]} 26... Ra8 {[%clk 0:01:21.1]} 27. Ra1 {[%clk 0:01:53.8]} 27... Nb5
{[%clk 0:01:21.8]} 28. f5 {[%clk 0:01:40.7]} 28... Na3 {[%clk 0:01:21.8]} 29.
Bd3 {[%clk 0:01:40.4]} 29... c5 {[%clk 0:01:22.5]} 30. e6 {[%clk 0:01:39.3]}
30... Be8 {[%clk 0:01:22.6]} 31. f6 {[%clk 0:01:33.9]} 31... gxf6 {[%clk
0:01:22.9]} 32. Rxf6 {[%clk 0:01:34.2]} 32... Kg7 {[%clk 0:01:23.3]} 33. Raf1
{[%clk 0:01:28.9]} 33... c4 {[%clk 0:01:23.3]} 34. bxc4 {[%clk 0:01:19.7]} 34...
dxc4 {[%clk 0:01:23.5]} 35. Be4 {[%clk 0:01:19.1]} 35... Rxa5 {[%clk 0:01:24]}
36. Rf8 {[%clk 0:01:14.3]} 36... Re5 {[%clk 0:01:05.2]} 37. Bxb7 {[%clk
0:01:09]} 37... Rxe6 {[%clk 0:01:02.5]} 38. Bd5 {[%clk 0:01:07.2]} 38... Rxe3
{[%clk 0:01:02.1]} 39. Rg8+ {[%clk 0:00:46]} 39... Kh7 {[%clk 0:00:59.9]} 40.
Rff8 {[%clk 0:00:28.1]} 40... Re5 {[%clk 0:00:17.7]} 41. Bxc4 {[%clk 0:00:17.3]}
41... Nxc4 {[%clk 0:00:15.3]} 42. Rxe8 {[%clk 0:00:16.7]} 42... Rb5 {[%clk
0:00:14.1]} 43. Rb8 {[%clk 0:00:16]} 43... Ra5 {[%clk 0:00:11]} 44. Rgc8 {[%clk
0:00:14.6]} 44... Rg5+ {[%clk 0:00:05.4]} 45. Kf2 {[%clk 0:00:13.5]} 45... Rf5+
{[%clk 0:00:06]} 46. Ke2 {[%clk 0:00:12.8]} 46... Nd6 {[%clk 0:00:04.9]} 47.
Rc7+ {[%clk 0:00:11.7]} 47... Kg6 {[%clk 0:00:04.9]} 48. Rxb4 {[%clk 0:00:10.8]}
48... Nf7 {[%clk 0:00:03.7]} 49. Rb6+ {[%clk 0:00:07.1]} 49... Kh5 {[%clk
0:00:03.9]} 50. Rc4 {[%clk 0:00:04.2]} 50... Ng5 {[%clk 0:00:03.8]} 51. Rbb4
{[%clk 0:00:03.1]} 51... Re5+ {[%clk 0:00:03.7]} 52. Kd1 {[%clk 0:00:02.8]}
52... Rf5 {[%clk 0:00:03.7]} 53. Rh4+ {[%clk 0:00:02.4]} 53... Kg6 {[%clk
0:00:03.3]} 54. Rhg4 {[%clk 0:00:02.9]} 54... Kh5 {[%clk 0:00:03.5]} 55. h4
{[%clk 0:00:02.1]} 55... Ne6 {[%clk 0:00:03.4]} 56. Rg8 {[%clk 0:00:02]} 56...
Nf4 {[%clk 0:00:03.4]} 57. Kc1 {[%clk 0:00:01.9]} 57... Kxh4 {[%clk 0:00:03.4]}
0-1

[Event "Late-Titled-Tuesday-Blitz-February-20-2024"]
[Site "Chess.com"]
[Date "2024.02.20"]
[Round "2"]
[White "Mesa_1"]
[Black "platy3"]
[Result "0-1"]
[WhiteElo "2562"]
[BlackElo "2948"]
[TimeControl "180+1"]
[EndTime "14:18:25 PST"]
[Termination "platy3 won by resignation"]

1. d4 {[%clk 0:02:57.6]} 1... Nf6 {[%clk 0:02:57.8]} 2. c4 {[%clk 0:02:50.2]}
2... e6 {[%clk 0:02:57.3]} 3. Nc3 {[%clk 0:02:50.3]} 3... Bb4 {[%clk 0:02:53]}
4. Nf3 {[%clk 0:02:48.9]} 4... O-O {[%clk 0:02:51.3]} 5. Bg5 {[%clk 0:02:47.8]}
5... h6 {[%clk 0:02:50.9]} 6. Bh4 {[%clk 0:02:47.5]} 6... d5 {[%clk 0:02:49.6]}
7. cxd5 {[%clk 0:02:48.3]} 7... exd5 {[%clk 0:02:49.6]} 8. e3 {[%clk 0:02:39.3]}
8... Bf5 {[%clk 0:02:47]} 9. Bd3 {[%clk 0:02:38.5]} 9... Bxd3 {[%clk 0:02:45.6]}
10. Qxd3 {[%clk 0:02:39.4]} 10... c6 {[%clk 0:02:46]} 11. O-O {[%clk 0:02:39.1]}
11... Nbd7 {[%clk 0:02:46.2]} 12. Ne5 {[%clk 0:02:34.4]} 12... Re8 {[%clk
0:02:41.1]} 13. Nxd7 {[%clk 0:02:33.3]} 13... Qxd7 {[%clk 0:02:41]} 14. Bxf6
{[%clk 0:02:33.7]} 14... gxf6 {[%clk 0:02:41.9]} 15. Ne2 {[%clk 0:02:32.5]}
15... Bd6 {[%clk 0:02:40.5]} 16. Ng3 {[%clk 0:02:06.6]} 16... Qg4 {[%clk
0:02:36.4]} 17. Nf5 {[%clk 0:01:59.6]} 17... Bf8 {[%clk 0:02:36.5]} 18. f3
{[%clk 0:01:47.3]} 18... Qg6 {[%clk 0:02:32.3]} 19. g4 {[%clk 0:01:38.6]} 19...
Kh8 {[%clk 0:02:26.8]} 20. Kh1 {[%clk 0:01:33.7]} 20... Re6 {[%clk 0:02:22.8]}
21. Qb3 {[%clk 0:01:25.4]} 21... b6 {[%clk 0:02:09.4]} 22. Rac1 {[%clk
0:01:25.9]} 22... Rae8 {[%clk 0:02:08.6]} 23. a4 {[%clk 0:01:18.4]} 23... h5
{[%clk 0:02:07.7]} 24. h3 {[%clk 0:01:16.1]} 24... Bh6 {[%clk 0:02:05]} 25. Rce1
{[%clk 0:01:01.6]} 25... Rg8 {[%clk 0:01:34.4]} 26. Rg1 {[%clk 0:00:59]} 26...
Qh7 {[%clk 0:01:33.4]} 27. Qc2 {[%clk 0:00:56.7]} 27... Bg5 {[%clk 0:01:26.2]}
28. Kg2 {[%clk 0:00:53.4]} 28... Rge8 {[%clk 0:01:22.7]} 29. Kf2 {[%clk
0:00:51.1]} 29... Bh6 {[%clk 0:01:21.2]} 30. Re2 {[%clk 0:00:45.2]} 30... Bf8
{[%clk 0:01:17.1]} 31. Ke1 {[%clk 0:00:41.9]} 31... c5 {[%clk 0:01:17]} 32. Rgg2
{[%clk 0:00:26.8]} 32... Qg8 {[%clk 0:00:39.4]} 33. gxh5 {[%clk 0:00:21.5]}
33... Qh7 {[%clk 0:00:39.1]} 34. h6 {[%clk 0:00:19.1]} 34... cxd4 {[%clk
0:00:30.4]} 35. Nxd4 {[%clk 0:00:17.1]} 35... Rxe3 {[%clk 0:00:27.7]} 36. Qxh7+
{[%clk 0:00:16.6]} 36... Kxh7 {[%clk 0:00:28.6]} 37. Rxe3 {[%clk 0:00:16.4]}
37... Rxe3+ {[%clk 0:00:29.5]} 38. Re2 {[%clk 0:00:17.1]} 38... Rd3 {[%clk
0:00:25.4]} 39. Nc6 {[%clk 0:00:16]} 39... Rxf3 {[%clk 0:00:22]} 40. Re8 {[%clk
0:00:14]} 40... Bc5 {[%clk 0:00:18.6]} 41. Nxa7 {[%clk 0:00:12.5]} 41... Rxh3
{[%clk 0:00:17.1]} 42. Nb5 {[%clk 0:00:12.2]} 42... Rb3 {[%clk 0:00:16.4]} 43.
Re2 {[%clk 0:00:11.5]} 43... d4 {[%clk 0:00:14.7]} 44. Kd1 {[%clk 0:00:11.1]}
44... Kxh6 {[%clk 0:00:13.3]} 45. Rg2 {[%clk 0:00:08.3]} 45... Rb4 {[%clk
0:00:11.4]} 46. Kc2 {[%clk 0:00:05.8]} 46... Rxa4 {[%clk 0:00:10.9]} 47. Kd3
{[%clk 0:00:06.6]} 47... Rb4 {[%clk 0:00:10.8]} 48. Nc7 {[%clk 0:00:07]} 48...
Rb3+ {[%clk 0:00:10.9]} 49. Ke4 {[%clk 0:00:06.7]} 49... Re3+ {[%clk 0:00:09.7]}
50. Kf5 {[%clk 0:00:07.3]} 50... Rf3+ {[%clk 0:00:09.8]} 51. Ke4 {[%clk
0:00:07.4]} 51... Rf1 {[%clk 0:00:09.4]} 52. Nd5 {[%clk 0:00:07.6]} 52... f5+
{[%clk 0:00:09.6]} 53. Ke5 {[%clk 0:00:07.5]} 53... Kh5 {[%clk 0:00:06.5]} 54.
Nf4+ {[%clk 0:00:05.6]} 54... Kh6 {[%clk 0:00:05.8]} 55. Rh2+ {[%clk 0:00:05.6]}
55... Kg7 {[%clk 0:00:05.7]} 56. Rg2+ {[%clk 0:00:06.4]} 56... Kf8 {[%clk
0:00:05.7]} 57. Nd5 {[%clk 0:00:07.1]} 57... d3 {[%clk 0:00:05.1]} 58. b4 {[%clk
0:00:06.5]} 58... Bf2 {[%clk 0:00:03]} 59. Rh2 {[%clk 0:00:05.8]} 59... d2
{[%clk 0:00:02.7]} 60. Kf6 {[%clk 0:00:06.3]} 60... Ke8 {[%clk 0:00:03.3]} 61.
Nc3 {[%clk 0:00:05.1]} 61... Bd4+ {[%clk 0:00:03.4]} 62. Kg5 {[%clk 0:00:02.6]}
62... Bxc3 {[%clk 0:00:04.3]} 63. Re2+ {[%clk 0:00:02.7]} 63... Kd7 {[%clk
0:00:04.1]} 0-1

[Event "Late-Titled-Tuesday-Blitz-February-20-2024"]
[Site "Chess.com"]
[Date "2024.02.20"]
[Round "2"]
[White "Fandorine"]
[Black "ACollins05"]
[Result "1/2-1/2"]
[WhiteElo "2943"]
[BlackElo "2575"]
[TimeControl "180+1"]
[EndTime "14:18:32 PST"]
[Termination "Game drawn - insufficient material"]

1. d4 {[%clk 0:03:00.9]} 1... d5 {[%clk 0:02:59.8]} 2. c4 {[%clk 0:03:00.4]}
2... e6 {[%clk 0:03:00]} 3. Nf3 {[%clk 0:03:00.2]} 3... Nf6 {[%clk 0:02:59.8]}
4. Qc2 {[%clk 0:02:57.7]} 4... Be7 {[%clk 0:02:53.1]} 5. Bg5 {[%clk 0:02:56.2]}
5... O-O {[%clk 0:02:50.7]} 6. Nc3 {[%clk 0:02:54.6]} 6... h6 {[%clk 0:02:50.1]}
7. Bxf6 {[%clk 0:02:54]} 7... Bxf6 {[%clk 0:02:51]} 8. e3 {[%clk 0:02:48.4]}
8... b6 {[%clk 0:02:46.9]} 9. cxd5 {[%clk 0:02:42.8]} 9... exd5 {[%clk
0:02:47.8]} 10. Bd3 {[%clk 0:02:42.6]} 10... Bb7 {[%clk 0:02:44.1]} 11. O-O
{[%clk 0:02:42.2]} 11... Nd7 {[%clk 0:02:43.7]} 12. b4 {[%clk 0:02:42.2]} 12...
c6 {[%clk 0:02:40.5]} 13. Rab1 {[%clk 0:02:35.8]} 13... Re8 {[%clk 0:02:36.7]}
14. h3 {[%clk 0:02:17.9]} 14... a5 {[%clk 0:02:36.1]} 15. b5 {[%clk 0:02:08.4]}
15... c5 {[%clk 0:02:35.5]} 16. Bf5 {[%clk 0:02:02.9]} 16... cxd4 {[%clk
0:02:22.2]} 17. Bxd7 {[%clk 0:01:49.7]} 17... Qxd7 {[%clk 0:02:18.1]} 18. Nxd4
{[%clk 0:01:49.7]} 18... Bxd4 {[%clk 0:02:10.2]} 19. exd4 {[%clk 0:01:49.6]}
19... Rac8 {[%clk 0:02:10.5]} 20. Qd3 {[%clk 0:01:42.1]} 20... Rc4 {[%clk
0:02:08.2]} 21. Rfe1 {[%clk 0:01:41.9]} 21... Rec8 {[%clk 0:02:05.3]} 22. Ne2
{[%clk 0:01:34.9]} 22... Rc2 {[%clk 0:01:59.6]} 23. a3 {[%clk 0:01:27.2]} 23...
Qd6 {[%clk 0:01:46.3]} 24. Rbc1 {[%clk 0:01:08]} 24... Rxc1 {[%clk 0:01:41.3]}
25. Rxc1 {[%clk 0:01:08.9]} 25... Rxc1+ {[%clk 0:01:40.8]} 26. Nxc1 {[%clk
0:01:09.3]} 26... Bc8 {[%clk 0:01:40.5]} 27. Ne2 {[%clk 0:01:06.6]} 27... g6
{[%clk 0:01:37.9]} 28. Qg3 {[%clk 0:01:00.3]} 28... Qxg3 {[%clk 0:01:14.8]} 29.
Nxg3 {[%clk 0:01:00.2]} 29... Kf8 {[%clk 0:01:09.5]} 30. Ne2 {[%clk 0:00:59.8]}
30... Ke7 {[%clk 0:01:09.1]} 31. Nc3 {[%clk 0:00:56]} 31... Kd6 {[%clk
0:01:09.1]} 32. h4 {[%clk 0:00:55.2]} 32... Bf5 {[%clk 0:01:06.8]} 33. Kh2
{[%clk 0:00:51.5]} 33... Bd3 {[%clk 0:01:02]} 34. Kg3 {[%clk 0:00:50.6]} 34...
f5 {[%clk 0:00:57.3]} 35. Kf4 {[%clk 0:00:45.3]} 35... Ke6 {[%clk 0:00:51.7]}
36. f3 {[%clk 0:00:39.5]} 36... Bc4 {[%clk 0:00:48.5]} 37. g4 {[%clk 0:00:35.8]}
37... fxg4 {[%clk 0:00:42]} 38. fxg4 {[%clk 0:00:36.2]} 38... Kf6 {[%clk
0:00:42.4]} 39. g5+ {[%clk 0:00:34.4]} 39... hxg5+ {[%clk 0:00:43.3]} 40. hxg5+
{[%clk 0:00:34.2]} 40... Ke6 {[%clk 0:00:43.9]} 41. Kg4 {[%clk 0:00:21.3]} 41...
Kd6 {[%clk 0:00:42.2]} 42. Kg3 {[%clk 0:00:18.4]} 42... Bd3 {[%clk 0:00:38.1]}
43. Kf3 {[%clk 0:00:17.7]} 43... Bc4 {[%clk 0:00:35.7]} 44. Ke3 {[%clk
0:00:16.5]} 44... Bb3 {[%clk 0:00:34.4]} 45. Ne2 {[%clk 0:00:04.5]} 45... Bc2
{[%clk 0:00:25.7]} 46. Kf4 {[%clk 0:00:04.3]} 46... Bd3 {[%clk 0:00:23.2]} 47.
Nc3 {[%clk 0:00:04.8]} 47... Bc4 {[%clk 0:00:21.3]} 48. Na4 {[%clk 0:00:04.4]}
48... Kc7 {[%clk 0:00:17.4]} 49. Ke5 {[%clk 0:00:04.3]} 49... Bxb5 {[%clk
0:00:16.6]} 50. Nc3 {[%clk 0:00:04.4]} 50... Bc6 {[%clk 0:00:14.6]} 51. Kf6
{[%clk 0:00:05]} 51... b5 {[%clk 0:00:14.4]} 52. Kxg6 {[%clk 0:00:04.9]} 52...
b4 {[%clk 0:00:14.8]} 53. axb4 {[%clk 0:00:05.4]} 53... axb4 {[%clk 0:00:15.7]}
54. Nb1 {[%clk 0:00:05.3]} 54... Bb5 {[%clk 0:00:11.4]} 55. Kf6 {[%clk 0:00:05]}
55... Bd3 {[%clk 0:00:11.4]} 56. Nd2 {[%clk 0:00:05.5]} 56... Kb6 {[%clk
0:00:10.7]} 57. g6 {[%clk 0:00:05.2]} 57... Kb5 {[%clk 0:00:08.8]} 58. g7 {[%clk
0:00:04.8]} 58... Bh7 {[%clk 0:00:09.2]} 59. Ke5 {[%clk 0:00:05.5]} 59... Bg8
{[%clk 0:00:07.5]} 60. Kd6 {[%clk 0:00:05.3]} 60... Ka4 {[%clk 0:00:07.3]} 61.
Ke7 {[%clk 0:00:03.6]} 61... b3 {[%clk 0:00:06.7]} 62. Kf8 {[%clk 0:00:03.5]}
62... Bh7 {[%clk 0:00:06.6]} 63. g8=Q {[%clk 0:00:03.8]} 63... Bxg8 {[%clk
0:00:06.7]} 64. Kxg8 {[%clk 0:00:04.7]} 64... b2 {[%clk 0:00:06.9]} 65. Kf7
{[%clk 0:00:04.8]} 65... Kb4 {[%clk 0:00:07.5]} 66. Ke6 {[%clk 0:00:04.7]} 66...
Kc3 {[%clk 0:00:08.1]} 67. Nb1+ {[%clk 0:00:04.2]} 67... Kxd4 {[%clk 0:00:08.5]}
68. Kd6 {[%clk 0:00:04]} 68... Kc4 {[%clk 0:00:08.8]} 69. Ke5 {[%clk 0:00:04]}
69... d4 {[%clk 0:00:09.3]} 70. Ke4 {[%clk 0:00:04.6]} 70... d3 {[%clk
0:00:09.7]} 71. Ke3 {[%clk 0:00:05.3]} 71... Kb3 {[%clk 0:00:10.1]} 72. Kxd3
{[%clk 0:00:05.6]} 72... Ka2 {[%clk 0:00:10.2]} 73. Kc2 {[%clk 0:00:06.5]} 73...
Ka1 {[%clk 0:00:10]} 74. Nc3 {[%clk 0:00:06.8]} 74... b1=Q+ {[%clk 0:00:10.2]}
75. Nxb1 {[%clk 0:00:07.7]} 1/2-1/2